bitfinex/quotes_ETHUSD_20241225
["timestamp","ask_amount","ask_price","bid_price","bid_amount"]
[1735123311711,2.82846,3535.5,3534.3,0.9004]
[1735123311890,2.82822,3535.8,3534.4,0.7605]
[1735123312091,0.88969575,3536.0,3534.5,0.78878544]
[1735123312301,2.82782,3536.3,3535.0,2.82884]
[1735123312480,2.82782,3536.3,3534.6,4.92298354]
[1735123312481,2.82733,3537.0,3535.7,2.82827]
[1735123312700,3.63557,3537.2,3535.7,2.85654916]
[1735123312883,2.82742,3536.8,3535.7,2.82827]
[1735123313080,2.82742,3536.8,3535.6,0.7605]
[1735123313284,2.82742,3536.8,3535.6,3.58884]
[1735123313836,2.82742,3536.8,3535.8,0.7605]
[1735123314134,3.109907,3537.1,3535.9,3.14106018]
[1735123314634,2.82738,3536.9,3535.9,0.31294018]
[1735123314788,2.82693,3537.4,3535.4,3.0]
[1735123314789,2.82695,3537.4,3536.0,0.78877538]
[1735123314985,2.82684,3537.6,3536.1,0.7605]
[1735123315194,2.82684,3537.6,3536.3,0.7605]
[1735123315395,2.82684,3537.6,3536.4,0.02827264]
[1735123315635,0.282684,3537.5,3536.5,0.7605]
[1735123315788,3.109544,3537.5,3536.5,0.7605]
[1735123315983,2.82703,3537.3,3536.5,0.7605]
[1735123316184,0.282684,3537.5,3536.5,0.7605]
[1735123316185,2.82712,3537.2,3536.5,0.7605]
[1735123316453,2.82726,3537.0,3536.5,0.7605]
[1735123318110,2.82695,3537.4,3536.5,0.7605]
[1735123318111,2.8271,3537.2,3536.5,0.7605]
[1735123319119,2.82718,3537.1,3536.5,0.7605]
[1735123321519,0.02828005,3537.5,3535.6,3.0]
[1735123321708,2.82749,3536.8,3536.1,0.8181]
[1735123322143,2.82719,3537.1,3536.1,0.8181]
[1735123322948,0.02828005,3537.0,3536.1,0.8181]
[1735123323093,2.82754,3536.7,3535.4,0.8181]
[1735123323287,1.35206454,3536.9,3535.4,0.8181]
[1735123323515,3.26549446,3536.8,3535.4,0.8181]
[1735123323836,2.82774,3536.4,3535.4,0.8181]
[1735123324197,2.82801,3536.1,3535.4,0.8181]
[1735123324719,2.82772,3536.5,3535.4,0.8181]
[1735123324892,0.43803446,3536.8,3535.4,0.8181]
[1735123325390,2.82775,3536.4,3535.4,0.8181]
[1735123325588,2.82758,3536.6,3535.4,3.64658]
[1735123325791,2.82758,3536.6,3535.5,0.02827809]
[1735123326042,2.82758,3536.6,3535.4,3.64658]
[1735123326337,2.82782,3536.3,3535.4,0.8181]
[1735123326652,0.781,3536.9,3535.4,0.8181]
[1735123326653,2.82805,3536.1,3535.4,0.8181]
[1735123327305,2.82813,3535.9,3535.4,0.8181]
[1735123327505,0.282782,3536.2,3535.4,0.8181]
[1735123327721,2.82821,3535.8,3535.4,0.8181]
[1735123328042,2.82804,3536.1,3535.4,0.8181]
[1735123328193,2.82778,3536.4,3535.4,0.8181]
[1735123328394,2.82757,3536.7,3535.6,3.64644]
[1735123328703,2.82757,3536.7,3535.7,0.8181]
[1735123328887,3.110327,3536.7,3535.7,0.8181]
[1735123330538,0.282757,3536.7,3535.7,0.8181]
[1735123330747,2.82784,3536.3,3535.7,0.8181]
[1735123330892,2.82794,3536.2,3535.7,0.8181]
[1735123331298,2.8282,3535.9,3535.7,0.8181]
[1735123331543,0.02828005,3536.1,3535.3,0.8181]
[1735123331762,0.285623,3536.0,3535.3,0.8181]
[1735123331974,2.82838,3535.6,3535.3,0.8181]
[1735123332129,2.82824,3535.8,3534.5,0.8181]
[1735123333169,2.82853,3535.5,3534.5,0.8181]
[1735123333371,2.82824,3535.8,3534.5,0.8181]
[1735123333530,2.82859,3535.4,3534.5,0.8181]
[1735123336906,2.82877,3535.1,3534.5,0.8181]
[1735123337195,2.82837,3535.6,3534.5,0.8181]
[1735123337873,2.82845,3535.5,3534.5,0.8181]
[1735123338194,2.82894,3534.9,3534.5,0.8181]
[1735123338992,2.82901,3534.8,3534.5,0.8181]
[1735123339202,2.82861,3535.3,3534.5,0.8181]
[1735123339351,2.82886,3535.0,3534.5,0.8181]
[1735123339802,2.82867,3535.3,3534.5,0.8181]
[1735123340002,3.189244,3535.7,3534.6,0.02829233]
[1735123340148,2.82832,3535.7,3534.6,3.19670823]
[1735123340457,2.82815,3535.9,3534.7,0.7727]
[1735123340655,2.82815,3535.9,3534.8,2.829]
[1735123341242,2.82815,3535.9,3534.7,0.8009849]
[1735123341243,2.82788,3536.3,3535.1,0.7727]
[1735123341458,0.57252902,3536.7,3535.4,0.55]
[1735123341702,2.82753,3536.7,3535.6,3.60102]
[1735123342044,2.82753,3536.7,3535.6,1.187802]
[1735123342352,2.82759,3536.6,3535.6,0.7727]
[1735123342701,3.384973,3536.8,3535.6,3.60104]
[1735123342848,2.82743,3536.8,3535.6,3.60104]
[1735123343993,2.82758,3536.6,3535.6,0.7727]
[1735123344146,2.82758,3536.6,3535.6,1.132822]
[1735123344795,2.82765,3536.5,3535.6,1.132822]
[1735123344976,2.82749,3536.7,3535.6,1.132822]
[1735123345592,2.82757,3536.6,3535.6,1.132822]
[1735123345897,0.57096889,3536.9,3535.6,0.7727]
[1735123345898,2.82783,3536.3,3535.6,0.7727]
[1735123346195,2.82777,3536.4,3535.6,0.7727]
[1735123347201,2.82787,3536.3,3535.6,0.7727]
[1735123348292,2.85582005,3536.7,3535.6,0.7727]
[1735123348493,0.57096889,3536.9,3535.6,0.7727]
[1735123348494,2.82765,3536.5,3535.6,0.7727]
[1735123348795,2.82799,3536.1,3535.6,0.7727]
[1735123349098,2.82807,3536.0,3535.6,0.7727]
[1735123355205,2.82829,3535.7,3535.6,0.7727]
[1735123355415,0.8053,3536.3,3535.6,0.7727]
[1735123355416,2.82811,3536.0,3535.6,0.7727]
[1735123355992,0.363341,3536.0,3534.6,0.803]
[1735123356196,2.82822,3535.8,3534.8,3.0]
[1735123357016,2.82822,3535.8,3534.9,0.803]
[1735123358001,2.82822,3535.8,3534.9,3.803]
[1735123359305,0.55846935,3536.2,3535.0,0.83128497]
[1735123359474,2.82766,3536.5,3535.6,0.803]
[1735123359822,3.14469389,3536.5,3535.6,0.803]
[1735123360026,2.8275,3536.7,3535.7,0.02828064]
[1735123360188,2.35933819,3536.9,3535.8,2.85645753]
[1735123360388,2.35933819,3536.9,3536.0,0.55]
[1735123360726,3.53917336,3537.4,3536.5,0.803]
[1735123360727,2.35933819,3537.4,3536.5,0.803]
[1735123360922,2.35933819,3537.4,3536.9,2.8273]
[1735123361223,2.35933819,3537.4,3537.0,0.803]
[1735123361992,2.35933819,3537.4,3536.2,3.63087]
[1735123361993,0.02828005,3537.4,3536.2,3.63087]
[1735123362190,2.82701,3537.3,3536.2,3.63087]
[1735123362398,0.02828005,3537.2,3536.2,3.63087]
[1735123362696,0.02828005,3537.2,3536.2,4.5825519]
[1735123363975,2.82701,3537.3,3536.2,4.5825519]
[1735123365026,0.8053,3538.0,3536.5,0.803]
[1735123365220,2.82663,3537.8,3536.6,2.82756]
[1735123365422,0.8053,3538.0,3536.6,2.82756]
[1735123365625,0.3719426,3537.9,3536.6,2.82756]
[1735123365791,2.8269,3537.5,3536.5,0.803]
[1735123365991,2.82702,3537.3,3536.5,0.803]
[1735123366192,0.02828005,3537.2,3536.5,0.803]
[1735123366427,0.78748005,3537.5,3535.8,0.8123]
[1735123366597,2.8275,3536.7,3535.9,1.15437958]
[1735123367045,2.82789,3536.2,3535.9,1.15437958]
[1735123367174,2.82805,3536.0,3535.9,1.15437958]
[1735123368099,2.82805,3536.0,3535.1,0.8123]
[1735123368988,2.82813,3535.9,3535.1,0.8123]
[1735123370123,2.82826,3535.8,3535.1,0.8123]
[1735123372444,2.82789,3536.2,3535.1,0.8123]
[1735123372646,2.82824,3535.8,3535.1,0.8123]
[1735123373813,0.7592,3536.0,3535.1,0.8123]
[1735123374057,2.82829,3535.7,3535.1,0.8123]
[1735123374623,3.58733,3536.0,3535.1,0.8123]
[1735123375144,2.82815,3535.9,3535.1,0.8123]
[1735123375562,0.33865359,3536.1,3535.1,0.8123]
[1735123375705,2.82815,3535.9,3535.1,0.8123]
[1735123376432,0.55864591,3536.3,3535.1,0.8123]
[1735123376601,2.82824,3535.8,3535.1,0.8123]
[1735123376813,0.02828005,3535.7,3535.1,0.8123]
[1735123377046,2.85658005,3535.7,3535.1,0.8123]
[1735123377737,2.8283,3535.7,3535.1,0.8123]
[1735123379447,3.11113,3535.7,3535.1,0.8123]
[1735123380247,2.85668005,3535.6,3535.1,0.8123]
[1735123380453,0.28283,3535.7,3535.1,0.8123]
[1735123380753,2.82806,3536.0,3535.1,0.8123]
[1735123381301,2.82806,3536.0,3535.1,0.84058489]
[1735123381506,2.82806,3536.0,3535.1,0.8123]
[1735123384313,3.7584,3536.8,3535.2,0.8024849]
[1735123384511,6.38770866,3536.8,3535.4,0.7742]
[1735123384713,3.73048474,3536.7,3535.6,2.82832]
[1735123384911,0.87470469,3536.7,3535.7,2.82828]
[1735123386904,2.82741,3536.8,3535.7,2.82828]
[1735123389122,2.82751,3536.7,3535.7,2.82828]
[1735123389534,2.82783,3536.3,3535.5,0.7742]
[1735123389769,2.82815,3535.9,3535.2,0.8171]
[1735123390077,0.7914,3536.4,3535.2,0.8171]
[1735123390078,2.82822,3535.8,3535.2,0.8171]
[1735123390285,0.282822,3535.7,3535.2,0.8171]
[1735123390450,2.82822,3535.8,3535.2,0.8171]
[1735123390981,2.82787,3536.3,3535.2,0.8171]
[1735123391185,2.82807,3536.0,3535.2,0.8171]
[1735123391785,2.82779,3536.4,3535.3,2.82861]
[1735123392352,0.55989556,3536.5,3535.2,0.8171]
[1735123392566,2.828,3536.1,3535.2,0.8171]
[1735123392769,0.02828005,3536.0,3535.2,0.8171]
[1735123393402,2.82783,3536.3,3535.2,0.8171]
[1735123394295,2.82773,3536.4,3535.2,0.8171]
[1735123394450,2.82792,3536.2,3535.2,0.8171]
[1735123394641,2.82792,3536.2,3535.3,0.02828241]
[1735123395177,2.82792,3536.2,3535.2,0.8171]
[1735123396092,2.82792,3536.2,3535.3,0.02828242]
[1735123396858,2.82792,3536.2,3535.2,3.64576]
[1735123397068,2.82792,3536.2,3535.3,0.364576]
[1735123398094,0.55989556,3536.5,3535.3,0.364576]
[1735123398387,2.82797,3536.1,3535.2,0.8171]
[1735123399190,2.82781,3536.4,3535.2,3.64576]
[1735123399388,2.35933819,3537.2,3535.4,0.8145]
[1735123399691,2.35933819,3537.2,3537.0,0.8145]
[1735123400642,2.35933819,3537.2,3537.1,2.82717]
[1735123400861,2.35933819,3537.2,3537.1,3.474072]
[1735123401191,3.38003122,3538.2,3537.1,3.474072]
[1735123401192,2.82634,3538.2,3537.1,3.474072]
[1735123401761,3.60255,3538.4,3537.2,2.85534656]
[1735123401988,2.82624,3538.3,3537.2,2.82708]
[1735123402395,2.82631,3538.2,3537.1,0.646902]
[1735123402738,2.82631,3538.2,3537.2,0.4288632]
[1735123403071,2.82631,3538.2,3537.1,2.85542656]
[1735123403397,4.16008068,3538.4,3537.2,2.82707]
[1735123403602,1.33389068,3538.4,3537.2,2.82707]
[1735123403813,2.82624,3538.3,3537.2,2.82707]
[1735123404016,2.82624,3538.3,3537.3,0.02826633]
[1735123404314,2.82624,3538.3,3537.3,0.36698363]
[1735123404970,2.82631,3538.2,3537.3,0.36698363]
[1735123406385,2.82631,3538.2,3537.1,2.82716]
[1735123406585,2.82631,3538.2,3537.2,0.8145]
[1735123406786,0.55749068,3538.4,3537.2,0.8145]
[1735123406787,2.82643,3538.1,3537.2,0.8145]
[1735123407020,2.82653,3537.9,3537.2,0.8145]
[1735123408115,0.55749068,3538.4,3537.2,0.8145]
[1735123408352,2.8269,3537.5,3537.2,0.8145]
[1735123408919,2.82647,3538.0,3537.2,0.8145]
[1735123409105,0.02828005,3538.2,3537.2,0.8145]
[1735123409305,1.11475407,3538.3,3537.2,0.8145]
[1735123409306,2.82685,3537.5,3537.2,0.8145]
[1735123409502,2.827,3537.4,3536.5,0.7892]
[1735123409826,2.82745,3536.8,3535.7,0.7892]
[1735123410160,0.7814,3537.8,3535.7,0.81747692]
[1735123410453,2.82674,3537.7,3536.6,2.82757]
[1735123410657,0.02828005,3537.6,3536.7,0.361677]
[1735123410950,0.58898062,3537.9,3536.5,0.7892]
[1735123411164,2.82711,3537.2,3536.5,0.7892]
[1735123411339,3.0,3537.6,3536.5,0.7892]
[1735123411662,2.82749,3536.7,3536.0,0.7617]
[1735123412523,2.8269,3537.5,3536.0,0.7617]
[1735123412843,2.82723,3537.1,3536.0,0.7617]
[1735123413355,0.02828005,3537.0,3536.0,0.7617]
[1735123413516,2.82766,3536.5,3536.0,0.7617]
[1735123413718,2.82775,3536.4,3536.0,0.7617]
[1735123415262,2.82757,3536.6,3536.0,0.7617]
[1735123416059,2.82762,3536.6,3536.0,0.7617]
[1735123416215,3.40080257,3536.6,3536.0,0.7617]
[1735123416611,0.57318257,3536.6,3536.0,0.7617]
[1735123416839,2.36499856,3537.9,3536.0,0.7617]
[1735123416840,0.8166,3537.7,3536.0,0.7617]
[1735123417054,2.8271,3537.2,3536.1,3.58966]
[1735123417559,0.02828005,3537.1,3536.1,0.7617]
[1735123417745,0.8166,3537.0,3536.1,0.7617]
[1735123417947,3.02828005,3536.9,3535.6,0.7617]
[1735123418118,3.0,3536.7,3535.6,0.7617]
[1735123418313,2.82819,3535.9,3535.6,0.7617]
[1735123420461,2.82797,3536.1,3534.6,2.82915]
[1735123420820,2.8282,3535.9,3534.7,3.7617]
[1735123421023,2.8282,3535.9,3534.8,2.829]
[1735123421257,0.02828005,3535.8,3534.7,0.7617]
[1735123421771,0.8166,3535.6,3534.1,0.7617]
[1735123422092,2.82923,3534.6,3534.1,0.7617]
[1735123423583,2.82899,3534.9,3534.1,0.7617]
[1735123424452,0.57670354,3535.2,3534.1,0.7617]
[1735123424653,2.82903,3534.8,3534.1,0.7617]
[1735123426188,2.82884,3535.1,3534.1,0.7617]
[1735123426354,2.82862,3535.3,3534.3,0.7647]
[1735123428463,2.82862,3535.3,3534.4,0.02828978]
[1735123428666,2.82862,3535.3,3534.5,0.7647]
[1735123429387,2.82871,3535.2,3534.5,0.7647]
[1735123429787,2.82881,3535.1,3534.5,0.7647]
[1735123430291,3.111691,3535.1,3534.5,0.7647]
[1735123430637,2.82881,3535.1,3534.5,0.7647]
[1735123431709,0.57324785,3535.7,3534.5,0.7647]
[1735123432010,0.02828005,3535.4,3534.5,0.7647]
[1735123432219,0.002,3534.5,3534.1,0.7647]
[1735123433078,0.31339705,3534.5,3533.7,0.7647]
[1735123433292,2.82946,3534.3,3533.7,0.7647]
[1735123433665,2.85782005,3534.2,3533.7,0.7647]
[1735123433868,2.82957,3534.1,3532.7,0.7647]
[1735123434097,2.82992,3533.7,3532.8,0.359544]
[1735123434298,2.82981,3533.8,3532.8,0.359544]
[1735123434886,0.282957,3534.0,3532.8,0.359544]
[1735123435088,2.82962,3534.1,3532.8,0.359544]
[1735123435304,2.82993,3533.7,3532.8,0.359544]
[1735123435615,0.56565507,3534.4,3532.8,0.359544]
[1735123435616,2.83004,3533.6,3532.8,0.359544]
[1735123436512,2.83001,3533.6,3532.7,0.7647]
[1735123437189,2.82987,3533.8,3532.7,3.7647]
[1735123437386,2.82987,3533.8,3532.8,0.7647]
[1735123437789,2.82992,3533.7,3532.8,0.7647]
[1735123438319,2.83008,3533.5,3532.8,0.7647]
[1735123438868,2.83015,3533.4,3532.8,0.7647]
[1735123439332,0.283008,3533.5,3532.8,0.7647]
[1735123439532,2.82999,3533.6,3532.8,0.7647]
[1735123441663,2.83005,3533.5,3532.8,0.7647]
[1735123442251,3.3947044,3533.7,3532.8,0.7647]
[1735123442455,2.82973,3534.0,3532.8,0.7627]
[1735123442685,0.282973,3533.9,3532.9,35.02830192]
[1735123442891,0.282973,3533.9,3532.9,35.0]
[1735123443653,0.282973,3533.9,3532.8,2.83054]
[1735123444913,0.002,3534.5,3533.1,3.0]
[1735123445195,0.002,3534.5,3533.6,2.82992]
[1735123445507,0.002,3534.5,3533.2,2.83029]
[1735123445651,0.002,3534.5,3533.8,0.768]
[1735123446054,0.03028005,3534.5,3533.8,0.768]
[1735123446701,2.82974,3533.9,3533.3,0.768]
[1735123447600,2.82957,3534.1,3533.3,0.768]
[1735123448768,1.08015001,3534.4,3533.3,0.768]
[1735123448967,3.90954001,3534.4,3533.3,3.59814]
[1735123449774,1.08015001,3534.4,3533.3,0.768]
[1735123450007,2.82951,3534.2,3533.3,0.768]
[1735123450205,0.02828005,3534.1,3533.3,0.768]
[1735123450700,2.8298,3533.9,3533.3,0.768]
[1735123451395,2.82959,3534.1,3533.3,0.768]
[1735123453355,2.82942,3534.3,3533.3,0.768]
[1735123453571,0.57950974,3534.4,3533.3,0.768]
[1735123453819,2.8295,3534.2,3533.3,0.768]
[1735123454104,0.34110097,3534.2,3533.3,0.768]
[1735123454402,2.82941,3534.3,3533.3,0.768]
[1735123454807,0.002,3534.5,3533.3,0.768]
[1735123454991,2.8295,3534.2,3533.3,0.768]
[1735123455392,2.82962,3534.1,3533.3,0.768]
[1735123455588,2.8296,3534.1,3533.3,0.768]
[1735123455790,0.28296,3534.0,3533.3,0.768]
[1735123456805,2.82938,3534.4,3533.3,0.768]
[1735123457706,2.82938,3534.4,3533.3,3.59821]
[1735123458713,2.82942,3534.3,3533.3,3.59821]
[1735123459093,2.82956,3534.2,3533.3,0.768]
[1735123460775,6.39813561,3534.5,3533.3,3.59819]
[1735123460980,0.63981356,3534.4,3533.3,0.768]
[1735123461570,2.82941,3534.3,3533.3,3.59817]
[1735123461909,2.82941,3534.3,3533.3,0.768]
[1735123462116,2.82959,3534.1,3533.3,0.768]
[1735123462862,0.63981356,3534.4,3533.3,0.768]
[1735123463067,2.82969,3534.0,3533.3,0.768]
[1735123463757,0.02828005,3533.9,3533.3,0.768]
[1735123464018,2.82973,3533.9,3533.3,0.768]
[1735123464865,3.58318,3534.1,3533.3,0.768]
[1735123465284,2.82958,3534.1,3533.3,0.768]
[1735123465502,0.3261648,3534.0,3533.3,0.768]
[1735123465704,2.82966,3534.0,3533.3,0.768]
[1735123466474,2.85802005,3533.9,3533.3,0.768]
[1735123466783,0.40378792,3534.3,3533.3,0.768]
[1735123466784,2.85779005,3534.2,3533.3,0.768]
[1735123467098,2.82988,3533.8,3533.3,0.768]
[1735123467579,0.02828005,3534.1,3533.3,0.768]
[1735123467914,2.8299,3533.7,3533.3,0.768]
[1735123468866,2.82975,3533.9,3533.3,0.768]
[1735123469124,0.3261578,3534.0,3533.3,0.768]
[1735123469618,0.7536,3534.4,3533.3,0.768]
[1735123469784,3.0,3534.1,3533.3,0.768]
[1735123470217,2.82976,3533.9,3533.3,0.768]
[1735123470519,2.82997,3533.6,3532.5,0.8328]
[1735123470683,2.83024,3533.3,3532.5,0.8328]
[1735123471009,2.83036,3533.2,3532.5,1.98738578]
[1735123471388,2.83039,3533.1,3532.5,1.98738578]
[1735123472268,2.83023,3533.3,3532.5,0.8328]
[1735123472467,0.358357,3533.5,3532.5,0.8328]
[1735123472898,0.358357,3533.5,3532.8,0.7854]
[1735123473669,0.8217,3534.0,3532.8,0.7854]
[1735123473871,0.02828005,3533.9,3532.8,0.7854]
[1735123474108,2.82989,3533.7,3532.8,0.7854]
[1735123474624,2.83006,3533.5,3532.8,0.7854]
[1735123474819,0.02828005,3533.4,3532.8,0.7854]
[1735123475026,0.28583401,3533.4,3532.8,0.7854]
[1735123475169,3.14426406,3533.4,3532.8,0.7854]
[1735123476119,0.20924201,3533.4,3532.8,0.7854]
[1735123476304,2.83036,3533.2,3532.8,0.7854]
[1735123477332,3.03939201,3533.4,3532.8,0.7854]
[1735123477467,0.3039392,3533.3,3532.8,0.7854]
[1735123478927,2.83048,3533.0,3532.3,0.7854]
[1735123479075,2.83061,3532.8,3532.2,1.15458578]
[1735123479270,0.02828005,3532.7,3532.2,1.15458578]
[1735123479491,2.83077,3532.6,3532.2,1.15458578]
[1735123479824,2.83094,3532.4,3532.2,1.15458578]
[1735123480390,0.28588901,3532.6,3532.2,1.15458578]
[1735123480391,2.83101,3532.3,3532.2,1.15458578]
[1735123480589,2.83101,3532.3,3531.7,0.7854]
[1735123480918,0.02828005,3532.2,3531.7,0.7854]
[1735123481289,0.02828005,3532.2,3531.3,1.15458578]
[1735123481496,2.83131,3532.0,3531.4,0.7854]
[1735123481690,0.283131,3531.9,3531.4,0.7854]
[1735123481893,0.283131,3531.9,3531.3,1.15458578]
[1735123482094,2.83157,3531.7,3531.1,0.7854]
[1735123482387,0.84998005,3532.0,3531.1,0.7854]
[1735123482755,2.83171,3531.5,3531.1,0.7854]
[1735123482889,0.57438751,3531.9,3531.1,0.7854]
[1735123483096,2.83191,3531.2,3530.9,1.15458578]
[1735123483479,0.283191,3531.2,3530.5,1.15458578]
[1735123483695,0.8217,3532.2,3530.6,0.81372484]
[1735123483915,3.0,3532.3,3530.6,0.7854]
[1735123484079,2.83125,3532.1,3531.0,0.7854]
[1735123484279,0.8217,3531.9,3531.0,0.7854]
[1735123484515,2.83162,3531.6,3531.0,0.7854]
[1735123484695,3.19978001,3531.6,3531.0,0.7854]
[1735123485417,2.83166,3531.5,3531.0,0.7854]
[1735123485613,2.86003005,3531.4,3530.4,0.7854]
[1735123486129,0.36816001,3531.6,3530.4,0.7854]
[1735123486297,3.65306,3531.9,3530.7,2.83227]
[1735123486629,3.65306,3531.9,3530.8,1.059427]
[1735123487892,3.65306,3531.9,3530.8,3.891637]
[1735123488097,2.83142,3531.8,3530.8,1.059427]
[1735123488307,2.85981005,3531.7,3530.8,0.7762]
[1735123488576,0.02828005,3531.7,3530.8,0.7762]
[1735123489039,2.83165,3531.5,3530.8,0.7762]
[1735123489231,2.83185,3531.3,3530.8,0.7762]
[1735123489428,0.02828005,3531.7,3530.5,0.7929]
[1735123489429,2.83191,3531.2,3530.5,0.7929]
[1735123489580,3.115101,3531.2,3530.5,0.7929]
[1735123489788,2.83191,3531.2,3530.5,0.7929]
[1735123490881,0.8038,3531.1,3530.2,0.7929]
[1735123491128,3.63578,3531.1,3530.2,0.7929]
[1735123491324,3.63578,3531.1,3530.0,20.0]
[1735123491325,2.83213,3530.9,3530.0,20.0]
[1735123491481,2.83272,3530.2,3530.0,20.0]
[1735123492187,2.83278,3530.1,3530.0,20.0]
[1735123492817,3.63658,3530.1,3530.0,20.0]
[1735123493281,6.63658,3530.1,3530.0,20.0]
[1735123494935,2.83263,3530.3,3530.0,20.0]
[1735123495140,3.63627,3530.5,3530.0,20.0]
[1735123495289,2.83262,3530.3,3530.0,20.0]
[1735123495491,2.83278,3530.1,3530.0,20.0]
[1735123496287,5.83278,3530.1,3530.0,20.0]
[1735123498033,6.63658,3530.1,3530.0,20.0]
[1735123499809,5.83278,3530.1,3530.0,20.0]
[1735123500022,2.83263,3530.3,3530.0,20.0]
[1735123500334,1.80116288,3530.5,3530.0,20.0]
[1735123500335,3.82982288,3530.5,3530.0,20.0]
[1735123500537,0.02828005,3530.9,3530.0,20.0]
[1735123500837,0.57626781,3531.0,3530.1,0.7929]
[1735123501037,2.83239,3530.6,3530.1,0.7929]
[1735123501193,0.02828005,3530.9,3530.0,20.0]
[1735123501394,1.15265879,3530.8,3530.0,20.0]
[1735123501608,2.83278,3530.1,3530.0,20.0]
[1735123502457,6.64178,3530.1,3530.0,20.0]
[1735123503753,7.19178,3530.1,3530.0,20.0]
[1735123508975,6.38278,3530.1,3530.0,20.0]
[1735123509169,7.44287545,3530.1,3530.0,20.0]
[1735123513343,6.89287545,3530.1,3530.0,20.0]
[1735123513562,2.83278,3530.1,3530.0,20.0]
[1735123513749,0.57127454,3530.3,3530.0,20.0]
[1735123513750,3.0,3530.2,3530.0,20.0]
[1735123514176,3.0,3530.4,3530.0,20.0]
[1735123514376,2.83257,3530.4,3530.0,20.0]
[1735123514876,2.83264,3530.3,3530.0,20.0]
[1735123515277,2.83278,3530.1,3530.0,20.0]
[1735123517090,2.83262,3530.3,3530.0,20.0]
[1735123517294,2.83213,3531.0,3530.1,0.7525]
[1735123517702,3.64624,3531.7,3530.1,0.7525]
[1735123517924,2.83188,3531.3,3530.2,3.58512]
[1735123518146,2.83188,3531.3,3530.3,0.7525]
[1735123518479,2.832,3531.1,3530.3,0.7525]
[1735123518684,2.85993005,3531.6,3530.3,0.7525]
[1735123518685,0.02828005,3531.0,3530.3,0.7525]
[1735123518881,2.83246,3530.5,3530.3,0.7525]
[1735123519290,2.83227,3530.8,3530.3,0.7525]
[1735123519491,2.8323,3530.7,3530.3,0.7525]
[1735123520625,3.0,3531.3,3530.3,0.7525]
[1735123520626,0.02828005,3531.1,3530.3,0.7525]
[1735123523312,2.83221,3530.9,3530.3,0.7525]
[1735123523710,2.83198,3531.1,3530.3,0.7525]
[1735123523910,2.83183,3531.3,3530.3,0.7525]
[1735123524656,2.83188,3531.3,3530.3,0.7525]
[1735123524811,2.8319,3531.2,3530.4,0.7525]
[1735123525910,3.0,3531.4,3530.4,0.7525]
[1735123526106,2.83196,3531.2,3530.4,0.7525]
[1735123527981,3.39423845,3531.5,3530.4,0.7525]
[1735123528325,2.83195,3531.2,3530.4,0.7525]
[1735123528627,2.83199,3531.1,3530.4,0.7525]
[1735123528840,2.83225,3530.8,3530.4,0.7525]
[1735123529013,2.83216,3530.9,3530.4,0.7525]
[1735123529912,3.0,3531.4,3530.4,0.7525]
[1735123530113,2.83192,3531.2,3530.4,0.7525]
[1735123530742,3.39423845,3531.5,3530.4,0.7525]
[1735123530960,2.832,3531.1,3530.4,0.7525]
[1735123531765,2.83182,3531.3,3530.4,0.7525]
[1735123533275,3.39426845,3531.5,3530.4,3.58503]
[1735123533474,2.83168,3531.5,3530.5,2.83244]
[1735123533694,2.83168,3531.5,3530.6,0.8175]
[1735123533897,2.83168,3531.5,3530.8,0.8175]
[1735123534275,2.83174,3531.4,3530.8,0.8175]
[1735123534648,0.57499071,3532.0,3530.8,0.8175]
[1735123534853,2.83188,3531.3,3530.8,0.8175]
[1735123536298,0.8057,3531.9,3530.8,0.8175]
[1735123536446,0.57499071,3532.0,3530.8,0.8175]
[1735123536794,0.57499071,3532.0,3530.4,0.02832092]
[1735123536795,3.0,3531.9,3531.0,0.8175]
[1735123536992,2.83141,3531.9,3531.0,0.8175]
[1735123538848,2.83137,3531.9,3531.0,0.8175]
[1735123539097,2.83137,3531.9,3531.2,0.8175]
[1735123539294,0.56512108,3532.1,3531.2,0.8175]
[1735123539451,2.83154,3531.7,3531.2,0.8175]
[1735123540948,0.56512108,3532.1,3531.2,0.8175]
[1735123541149,2.83133,3531.9,3531.2,0.8175]
[1735123542018,0.98773895,3531.8,3531.2,0.8175]
[1735123542308,0.56512108,3532.1,3531.2,0.8175]
[1735123542511,1.00346685,3532.0,3531.2,0.8175]
[1735123544728,2.83138,3531.9,3531.2,0.8175]
[1735123549735,1.00346685,3532.0,3531.2,0.8175]
[1735123550075,2.83166,3531.5,3531.2,0.8175]
[1735123550374,2.83149,3531.8,3531.2,0.8175]
[1735123550569,2.83147,3531.8,3531.2,0.8175]
[1735123551062,1.00346685,3532.0,3531.2,3.0]
[1735123551366,1.00346685,3532.0,3530.9,5.86038411]
[1735123551367,1.00346685,3532.0,3531.4,0.7732]
[1735123551535,1.00346685,3532.0,3531.6,0.7732]
[1735123554753,3.83473685,3532.0,3531.6,0.7732]
[1735123555370,1.00346685,3532.0,3531.6,0.7732]
[1735123557550,3.83473685,3532.0,3531.6,0.7732]
[1735123557956,1.00346685,3532.0,3531.6,0.7732]
[1735123559980,1.38975054,3532.0,3530.9,2.83212]
[1735123560149,2.83152,3531.7,3531.0,0.7732]
[1735123560801,0.02828005,3531.6,3531.0,0.7732]
[1735123561108,3.0,3531.7,3531.0,0.7732]
[1735123561249,2.83206,3531.0,3530.5,1.94188578]
[1735123561603,3.115366,3530.9,3530.5,0.7873]
[1735123561802,2.83225,3530.8,3530.5,0.7873]
[1735123562293,0.9886864,3531.2,3530.5,0.7873]